fUST/lending_fUST_20250925
["ID","MTS","AMOUNT","RATE_DAILY","PERIOD"]
[387595583,1758780428429,-500.0,0.00019341,2]
[387595584,1758780428450,-500.0,0.00019341,2]
[387595585,1758780428471,-500.0,0.00019341,2]
[387595586,1758780428492,-500.0,0.00019341,2]
[387595587,1758780428514,-500.0,0.00019341,2]
[387595588,1758780428535,-500.0,0.00019341,2]
[387595589,1758780428557,-500.0,0.00019341,2]
[387595590,1758780428579,-500.0,0.00019341,2]
[387595591,1758780428600,-500.0,0.00019341,2]
[387595592,1758780428622,-500.0,0.00019341,2]
[387595593,1758780428643,-500.0,0.00019341,2]
[387595594,1758780428664,-500.0,0.00019341,2]
[387595595,1758780428685,-500.0,0.00019341,2]
[387595596,1758780428706,-500.0,0.00019341,2]
[387595597,1758780428727,-500.0,0.00019341,2]
[387595598,1758780428749,-500.0,0.00019341,2]
[387595599,1758780428771,-500.0,0.00019341,2]
[387595600,1758780428794,-500.0,0.00019341,2]
[387595601,1758780428815,-500.0,0.00019341,2]
[387595602,1758780428839,-500.0,0.00019341,2]
[387595603,1758780428860,-500.0,0.00019341,2]
[387595604,1758780428882,-500.0,0.00019341,2]
[387595605,1758780428903,-500.0,0.00019341,2]
[387595606,1758780428926,-500.0,0.00019341,2]
[387595607,1758780428946,-500.0,0.00019341,2]
[387595608,1758780428967,-500.0,0.00019341,2]
[387595609,1758780428988,-500.0,0.00019341,2]
[387595610,1758780429010,-500.0,0.00019341,2]
[387595611,1758780429031,-500.0,0.00019341,2]
[387595612,1758780429052,-500.0,0.00019341,2]
[387595613,1758780429073,-500.0,0.00019341,2]
[387595614,1758780429094,-500.0,0.00019341,2]
[387595615,1758780429114,-500.0,0.00019341,2]
[387595616,1758780429135,-500.0,0.00019341,2]
[387595617,1758780429156,-500.0,0.00019341,2]
[387595618,1758780429176,-500.0,0.00019341,2]
[387595619,1758780429196,-500.0,0.00019341,2]
[387595620,1758780429216,-500.0,0.00019341,2]
[387595621,1758780429237,-500.0,0.00019341,2]
[387595622,1758780429258,-500.0,0.00019341,2]
[387595623,1758780429278,-500.0,0.00019341,2]
[387595624,1758780429299,-627.35641665,0.00019341,2]
[387595625,1758780429318,-500.0,0.00019341,2]
[387595626,1758780429338,-500.0,0.00019341,2]
[387595627,1758780429359,-500.0,0.00019341,2]
[387595628,1758780429379,-500.0,0.00019341,2]
[387595629,1758780429398,-500.0,0.00019341,2]
[387595630,1758780429418,-500.0,0.00019341,2]
[387595631,1758780429438,-500.0,0.00019341,2]
[387595632,1758780429458,-500.0,0.00019341,2]
[387595633,1758780429479,-500.0,0.00019341,2]
[387595634,1758780429500,-500.0,0.00019341,2]
[387595635,1758780429524,-500.0,0.00019341,2]
[387595636,1758780429546,-500.0,0.00019341,2]
[387595637,1758780429567,-500.0,0.00019341,2]
[387595638,1758780429589,-500.0,0.00019341,2]
[387595639,1758780429610,-500.0,0.00019341,2]
[387595640,1758780429632,-500.0,0.00019341,2]
[387595641,1758780429653,-500.0,0.00019341,2]
[387595642,1758780429675,-500.0,0.00019341,2]
[387595643,1758780429696,-500.0,0.00019341,2]
[387595644,1758780429717,-500.0,0.00019341,2]
[387595645,1758780429738,-500.0,0.00019341,2]
[387595646,1758780429760,-500.0,0.00019341,2]
[387595647,1758780429782,-562.73564167,0.00019341,2]
[387595648,1758780429802,-760.63,0.00019342,3]
[387595649,1758780429821,-500.0,0.00019351,2]
[387595650,1758780429846,-545.62,0.00019351,2]
[387595651,1758780429866,-480.0,0.00019351,2]
[387595652,1758780429886,-490.16836839,0.00019351,2]
[387595653,1758780429906,-480.0,0.00019351,2]
[387595654,1758780429929,-481.38231258,0.00019351,2]
[387595655,1758780429950,-480.0,0.00019351,2]
[387595656,1758780429970,-480.0,0.00019351,2]
[387595657,1758780429990,-267.06330889,0.00019351,2]
[387595658,1758780430010,-167.93140018,0.00019351,2]
[387595659,1758780430033,-500.0,0.00019351,2]
[387595660,1758780430056,-500.0,0.00019351,2]
[387595661,1758780430079,-500.0,0.00019351,2]
[387595662,1758780430101,-500.0,0.00019351,2]
[387595663,1758780430124,-500.0,0.00019351,2]
[387595664,1758780430145,-500.0,0.00019351,2]
[387595665,1758780430168,-500.0,0.00019351,2]
[387595666,1758780430189,-500.0,0.00019351,2]
[387595667,1758780430210,-500.0,0.00019351,2]
[387595668,1758780430232,-500.0,0.00019351,2]
[387595669,1758780430254,-500.0,0.00019351,2]
[387595670,1758780430276,-500.0,0.00019351,2]
[387595671,1758780430296,-500.0,0.00019351,2]
[387595672,1758780430319,-500.0,0.00019351,2]
[387595673,1758780430340,-621.03273636,0.00019351,2]
[387595674,1758780430361,-6384.85962087,0.00019352,2]
[387595675,1758780436085,-489.50382487,0.00019331,2]
[387595676,1758780436105,-489.78103183,0.00019333,2]
[387595677,1758780436126,-480.0,0.00019333,2]
[387595678,1758780436146,-50000.0,0.00019334,2]
[387595679,1758780436166,-43431.5709863,0.00019352,2]
[387595680,1758780442118,-480.0,0.00019332,2]
[387595681,1758780442139,-480.0,0.00019332,2]
[387595682,1758780442159,-495.56293669,0.00019333,2]
[387595683,1758780442179,-486.58376091,0.00019336,2]
[387595684,1758780442199,-644.0,0.00019351,2]
[387595685,1758780442219,-19625.0378124,0.00019352,2]
[387595686,1758780452072,-235.05095735,0.000193,2]
[387595687,1758780452094,-480.0,0.00019333,2]
[387595688,1758780452114,-417.90293501,0.00019336,2]
[387595689,1758780452135,-480.0,0.00019337,2]
[387595690,1758780452156,-127625.06492864,0.00019352,2]
[387595692,1758780458011,279.913453,0.00018323,2]
[387595695,1758780481281,204.85,0.00015984,2]
[387595696,1758780481571,204.85,0.00015984,2]
[387595697,1758780481902,204.83,0.00015984,2]
[387595729,1758780632719,-500.0,0.000193,2]
[387595731,1758780632735,-161.94105138,0.0001933,2]
[387595733,1758780632744,-480.0,0.0001933,2]
[387595735,1758780632754,-480.0,0.0001933,2]
[387595737,1758780632763,-300.0,0.00019331,2]
[387595739,1758780632772,-300.0,0.00019331,2]
[387595741,1758780632781,-300.0,0.00019331,2]
[387595743,1758780632791,-300.0,0.00019331,2]
[387595745,1758780632800,-780.0,0.00019331,2]
[387595747,1758780632810,-480.0,0.00019332,2]
[387595749,1758780632820,-480.0,0.00019332,2]
[387595751,1758780632829,-480.0,0.00019332,2]
[387595753,1758780632838,-480.0,0.00019332,2]
[387595755,1758780632848,-504.62,0.00019332,2]
[387595757,1758780632858,-480.0,0.00019332,2]
[387595759,1758780632867,-480.0,0.00019332,2]
[387595761,1758780632876,-12682.97385362,0.00019332,2]
[387595763,1758780632886,-480.0,0.00019333,2]
[387595765,1758780632895,-480.0,0.00019333,2]
[387595767,1758780632904,-480.0,0.00019333,2]
[387595769,1758780632913,-480.0,0.00019333,2]
[387595771,1758780632923,-480.0,0.00019333,2]
[387595773,1758780632932,-480.0,0.00019333,2]
[387595775,1758780632941,-480.0,0.00019333,2]
[387595777,1758780632951,-480.0,0.00019333,2]
[387595779,1758780632962,-480.0,0.00019333,2]
[387595781,1758780632971,-480.0,0.00019333,2]
[387595783,1758780632980,-195.1340158,0.00019333,2]
[387595785,1758780632990,-480.0,0.00019333,2]
[387595787,1758780632999,-480.0,0.00019333,2]
[387595789,1758780633009,-480.0,0.00019333,2]
[387595791,1758780633018,-493.48235649,0.00019333,2]
[387595793,1758780633027,-480.0,0.00019333,2]
[387595795,1758780633037,-157.08285119,0.00019333,2]
[387595797,1758780633046,-483.0824462,0.00019333,2]
[387595799,1758780633055,-558.34745576,0.00019333,2]
[387595801,1758780633065,-483.4464896,0.00019333,2]
[387595803,1758780633075,-485.80067785,0.00019333,2]
[387595805,1758780633084,-477.10875645,0.00019334,2]
[387595807,1758780633094,-484.05635111,0.00019334,2]
[387595809,1758780633104,-480.0,0.00019334,2]
[387595811,1758780633113,-480.0,0.00019334,2]
[387595813,1758780633123,-488.64893942,0.00019334,2]
[387595815,1758780633132,-486.39337993,0.00019336,2]
[387595817,1758780633142,-522.88,0.00019336,2]
[387595819,1758780633151,-480.0,0.00019336,2]
[387595821,1758780633161,-480.0,0.00019336,2]
[387595823,1758780633171,-480.0,0.00019337,2]
[387595825,1758780633180,-480.0,0.00019337,2]
[387595827,1758780633190,-480.0,0.00019337,2]
[387595829,1758780633200,-1282.95,0.00019337,2]
[387595831,1758780633209,-480.0,0.00019337,2]
[387595833,1758780633219,-480.0,0.00019338,2]
[387595835,1758780633229,-480.0,0.00019338,2]
[387595837,1758780633239,-380.3,0.00019342,3]
[387595839,1758780633248,-480.0,0.00019351,2]
[387595841,1758780633258,-532.02126288,0.00019351,2]
[387595843,1758780633268,-500.0,0.00019351,2]
[387595845,1758780633278,-500.0,0.00019351,2]
[387595848,1758780633288,-500.0,0.00019351,2]
[387595849,1758780633297,-500.0,0.00019351,2]
[387595852,1758780633307,-256.27356417,0.00019351,2]
[387595854,1758780633318,-500.0,0.00019351,2]
[387595856,1758780633328,-500.0,0.00019351,2]
[387595857,1758780633338,-500.0,0.00019351,2]
[387595860,1758780633347,-500.0,0.00019351,2]
[387595862,1758780633357,-500.0,0.00019351,2]
[387595864,1758780633366,-186.94431622,0.00019351,2]
[387595865,1758780633375,-5652.92376461,0.00019352,2]
[387595872,1758780633430,-10543.428427,0.00019352,2]
[387595874,1758780633442,-156737.11446018,0.00019352,2]
[387595876,1758780633452,-500.0,0.00019373,2]
[387595879,1758780633462,-500.0,0.00019373,2]
[387595880,1758780633472,-502.64215803,0.00019373,2]
[387595882,1758780633481,-501.48619723,0.00019373,2]
[387595884,1758780633491,-504.41502142,0.00019373,2]
[387595886,1758780633500,-500.0,0.00019373,2]
[387595888,1758780633509,-503.7384078,0.00019373,2]
[387595890,1758780633518,-505.05039891,0.00019373,2]
[387595892,1758780633528,-500.0,0.00019373,2]
[387595894,1758780633537,-500.0,0.00019373,2]
[387595896,1758780633546,-500.0,0.00019373,2]
[387595898,1758780633556,-500.0,0.00019373,2]
[387595900,1758780633566,-501.57163345,0.00019373,2]
[387595902,1758780633576,-500.0,0.00019373,2]
[387595905,1758780633585,-500.0,0.00019373,2]
[387595906,1758780633595,-501.35648561,0.00019373,2]
[387595909,1758780633606,-500.89419259,0.00019373,2]
[387595911,1758780633616,-500.0,0.00019373,2]
[387595913,1758780633626,-500.0,0.00019373,2]
[387595915,1758780633636,-500.0,0.00019373,2]
[387595917,1758780633645,-500.0,0.00019373,2]
[387595919,1758780633656,-500.0,0.00019373,2]
[387595921,1758780633666,-813.04989175,0.00019507,2]
[387595923,1758780633679,-480.0,0.00019604,2]
[387595925,1758780633689,-480.0,0.00019604,2]
[387595927,1758780633700,-488.52,0.00019606,2]
[387595929,1758780633710,-480.0,0.00019606,2]
[387595931,1758780633720,-388.56540767,0.00019606,2]
[387595933,1758780633731,-480.0,0.00019606,2]
[387595935,1758780633741,-480.0,0.00019606,2]
[387595937,1758780633751,-480.0,0.00019606,2]
[387595939,1758780633760,-480.0,0.00019606,2]
[387595941,1758780633770,-480.0,0.00019606,2]
[387595943,1758780633782,-480.0,0.00019606,2]
[387595945,1758780633795,-480.0,0.00019606,2]
[387595947,1758780633808,-504.62,0.00019606,2]
[387595950,1758780633823,-480.0,0.00019606,2]
[387595952,1758780633837,-480.0,0.00019606,2]
[387595955,1758780633850,-480.0,0.00019607,2]
[387595957,1758780633861,-480.0,0.00019607,2]
[387595959,1758780633874,-480.0,0.00019607,2]
[387595961,1758780633887,-480.0,0.00019607,2]
[387595963,1758780633899,-480.0,0.00019607,2]
[387595966,1758780633913,-480.0,0.00019607,2]
[387595968,1758780633927,-480.0,0.00019607,2]
[387595970,1758780633940,-480.0,0.00019607,2]
[387595972,1758780633952,-163.8072624,0.00019607,2]
[387595975,1758780633969,-554.88422734,0.00019607,2]
[387595977,1758780633983,-480.0,0.00019607,2]
[387595979,1758780633999,-480.0,0.00019607,2]
[387595982,1758780634014,-480.0,0.00019607,2]
[387595984,1758780634027,-480.0,0.00019607,2]
[387595986,1758780634038,-480.0,0.00019607,2]
[387595988,1758780634050,-480.0,0.00019607,2]
[387595991,1758780634062,-480.0,0.00019608,2]
[387595993,1758780634073,-468.3598184,0.00019608,2]
[387595995,1758780634085,-480.0,0.00019608,2]
[387595997,1758780634098,-480.0,0.00019608,2]
[387596000,1758780634111,-480.0,0.00019608,2]
[387596002,1758780634124,-480.0,0.00019608,2]
[387596004,1758780634136,-480.0,0.0001961,2]
[387596007,1758780634147,-480.0,0.0001961,2]
[387596009,1758780634158,-522.88,0.0001961,2]
[387596011,1758780634170,-480.0,0.0001961,2]
[387596013,1758780634184,-480.0,0.0001961,2]
[387596015,1758780634195,-480.0,0.00019611,2]
[387596017,1758780634207,-480.0,0.00019611,2]
[387596018,1758780634219,-480.0,0.00019611,2]
[387596019,1758780634232,-480.0,0.00019611,2]
[387596020,1758780634245,-480.0,0.00019611,2]
[387596021,1758780634257,-480.0,0.00019611,2]
[387596022,1758780634270,-560.54903935,0.00019611,2]
[387596023,1758780634282,-480.0,0.00019611,2]
[387596024,1758780634294,-1282.95,0.00019611,2]
[387596025,1758780634306,-480.0,0.00019611,2]
[387596027,1758780634319,-480.0,0.00019612,2]
[387596029,1758780634328,-480.0,0.00019612,2]
[387596031,1758780634338,-480.0,0.00019612,2]
[387596033,1758780634348,-480.0,0.00019612,2]
[387596035,1758780634358,-480.0,0.00019625,2]
[387596037,1758780634370,-480.0,0.00019625,2]
[387596040,1758780634382,-1433.92,0.00019821,2]
[387596042,1758780634396,-500.0,0.00019873,2]
[387596044,1758780634407,-500.0,0.00019873,2]
[387596047,1758780634420,-501.22126942,0.00019873,2]
[387596049,1758780634431,-500.40079915,0.00019873,2]
[387596051,1758780634441,-500.0,0.00019873,2]
[387596053,1758780634452,-513.87256015,0.00019873,2]
[387596055,1758780634463,-501.11738261,0.00019873,2]
[387596057,1758780634474,-159.25774323,0.00019873,2]
[387596058,1758780634487,-501.79865237,0.00019873,2]
[387596059,1758780634499,-500.0,0.00019873,2]
[387596060,1758780634510,-502.61204642,0.00019873,2]
[387596061,1758780634520,-501.25506324,0.00019873,2]
[387596062,1758780634532,-500.0,0.00019873,2]
[387596063,1758780634543,-500.0,0.00019873,2]
[387596064,1758780634554,-502.39841721,0.00019873,2]
[387596065,1758780634564,-500.6264978,0.00019873,2]
[387596066,1758780634575,-341.5753558,0.00019873,2]
[387596067,1758780634587,-228.73779768,0.00019873,2]
[387596068,1758780634598,-502.18029561,0.00019873,2]
[387596069,1758780634609,-500.0,0.00019873,2]
[387596070,1758780634619,-161.37100911,0.00019873,2]
[387596071,1758780634630,-500.47673959,0.00019873,2]
[387596072,1758780634641,-500.0,0.00019873,2]
[387596073,1758780634652,-150.0,0.00019873,2]
[387596074,1758780634663,-501.92234897,0.00019873,2]
[387596075,1758780634675,-500.0,0.00019873,2]
[387596077,1758780634685,-500.0,0.00019873,2]
[387596079,1758780634696,-500.0,0.00019873,2]
[387596081,1758780634707,-500.0,0.00019873,2]
[387596083,1758780634721,-480.0,0.00019878,2]
[387596085,1758780634733,-480.0,0.00019878,2]
[387596087,1758780634744,-488.52,0.0001988,2]
[387596090,1758780634755,-480.0,0.0001988,2]
[387596092,1758780634766,-480.0,0.0001988,2]
[387596094,1758780634776,-480.0,0.0001988,2]
[387596096,1758780634787,-480.0,0.0001988,2]
[387596098,1758780634798,-480.0,0.0001988,2]
[387596100,1758780634809,-480.0,0.0001988,2]
[387596103,1758780634821,-480.0,0.0001988,2]
[387596105,1758780634833,-480.0,0.0001988,2]
[387596107,1758780634843,-504.62,0.0001988,2]
[387596109,1758780634854,-480.0,0.0001988,2]
[387596111,1758780634864,-480.0,0.0001988,2]
[387596113,1758780634875,-480.0,0.00019881,2]
[387596115,1758780634886,-480.0,0.00019881,2]
[387596118,1758780634898,-460.60037379,0.00019881,2]
[387596120,1758780634909,-480.0,0.00019881,2]
[387596122,1758780634918,-480.0,0.00019881,2]
[387596124,1758780634928,-480.0,0.00019881,2]
[387596126,1758780634937,-480.0,0.00019881,2]
[387596128,1758780634947,-480.0,0.00019881,2]
[387596130,1758780634960,-480.0,0.00019881,2]
[387596132,1758780634969,-480.0,0.00019881,2]
[387596134,1758780634979,-480.0,0.00019881,2]
[387596135,1758780634989,-628.54316407,0.00019881,2]
[387596137,1758780634998,-480.0,0.00019881,2]
[387596139,1758780635008,-480.0,0.00019882,2]
[387596141,1758780635018,-480.0,0.00019882,2]
[387596143,1758780635027,-480.0,0.00019882,2]
[387596145,1758780635037,-480.0,0.00019882,2]
[387596147,1758780635051,-248.83597463,0.00019884,2]
[387596162,1758780635181,-480.0,0.00019884,2]
[387596165,1758780635196,-522.88,0.00019884,2]
[387596167,1758780635205,-480.0,0.00019884,2]
[387596169,1758780635214,-480.0,0.00019884,2]
[387596171,1758780635223,-480.0,0.00019885,2]
[387596173,1758780635233,-318.74676686,0.00019885,2]
[387596175,1758780635242,-480.0,0.00019885,2]
[387596177,1758780635252,-204.17640498,0.00019885,2]
[387596179,1758780635262,-480.0,0.00019885,2]
[387596181,1758780635271,-480.0,0.00019885,2]
[387596183,1758780635281,-485.72146729,0.00019885,2]
[387596185,1758780635290,-483.71615075,0.00019885,2]
[387596187,1758780635299,-480.0,0.00019885,2]
[387596189,1758780635309,-480.0,0.00019885,2]
[387596191,1758780635318,-480.0,0.00019885,2]
[387596193,1758780635327,-485.87382089,0.00019885,2]
[387596195,1758780635337,-480.0,0.00019885,2]
[387596197,1758780635346,-480.0,0.00019885,2]
[387596198,1758780635356,-491.78978776,0.00019885,2]
[387596200,1758780635365,-491.73347607,0.00019885,2]
[387596202,1758780635375,-2427.37,0.00019885,2]
[387596204,1758780635384,-495.96230381,0.00019885,2]
[387596206,1758780635393,-480.0,0.00019885,2]
[387596208,1758780635405,-480.0,0.00019885,2]
[387596210,1758780635413,-480.0,0.00019885,2]
[387596212,1758780635423,-1282.95,0.00019885,2]
[387596213,1758780635433,-480.0,0.00019885,2]
[387596215,1758780635442,-480.0,0.00019886,2]
[387596217,1758780635451,-480.0,0.00019886,2]
[387596219,1758780635460,-229.00869393,0.00019886,2]
[387596221,1758780635469,-480.0,0.00019886,2]
[387596223,1758780635478,-271.12578562,0.00019899,2]
[387596225,1758780635487,-480.0,0.00019899,2]
[387596227,1758780635496,-1235.44131399,0.000199,2]
[387596229,1758780635506,-774.76573918,0.000199,2]
[387596230,1758780635515,-1000.0,0.00019921,2]
[387596232,1758780635524,-507.71539267,0.00019921,2]
[387596234,1758780635534,-1000.0,0.00019921,2]
[387596236,1758780635543,-1000.0,0.00019921,2]
[387596237,1758780635552,-1000.0,0.00019921,2]
[387596238,1758780635561,-1000.0,0.00019921,2]
[387596239,1758780635571,-1006.21562887,0.00019921,2]
[387596240,1758780635580,-1113.83341633,0.00019921,2]
[387596241,1758780635590,-501.51332219,0.00019921,2]
[387596242,1758780635599,-502.5034692,0.00019921,2]
[387596243,1758780635608,-1000.0,0.00019921,2]
[387596244,1758780635618,-1000.0,0.00019921,2]
[387596245,1758780635627,-1000.0,0.00019921,2]
[387596246,1758780635636,-332.58785924,0.00019967,2]
[387596247,1758780635646,-501.71742053,0.00019973,2]
[387596248,1758780635655,-271.2135983,0.00019973,2]
[387596249,1758780635664,-500.0,0.00019973,2]
[387596250,1758780635673,-502.12131931,0.00019973,2]
[387596251,1758780635683,-500.0,0.00019973,2]
[387596252,1758780635693,-500.88247249,0.00019973,2]
[387596253,1758780635702,-100000.0,0.0001999,2]
[387596254,1758780635711,-151.49421473,0.0002,2]
[387596255,1758780635721,-151.20806755,0.0002001,2]
[387596256,1758780635731,-480.0,0.00020152,2]
[387596257,1758780635741,-480.0,0.00020152,2]
[387596258,1758780635751,-488.52,0.00020154,2]
[387596259,1758780635761,-480.0,0.00020154,2]
[387596260,1758780635770,-480.0,0.00020154,2]
[387596261,1758780635780,-258.38561272,0.00020154,2]
[387596262,1758780635789,-480.0,0.00020154,2]
[387596263,1758780635799,-480.0,0.00020154,2]
[387596264,1758780635808,-480.0,0.00020154,2]
[387596265,1758780635818,-480.0,0.00020154,2]
[387596266,1758780635827,-504.62,0.00020154,2]
[387596267,1758780635837,-151.84063337,0.00020154,2]
[387596268,1758780635846,-480.0,0.00020154,2]
[387596269,1758780635856,-480.0,0.00020155,2]
[387596270,1758780635865,-480.0,0.00020155,2]
[387596271,1758780635875,-480.0,0.00020155,2]
[387596272,1758780635885,-480.0,0.00020155,2]
[387596273,1758780635894,-208.56574848,0.00020155,2]
[387596274,1758780635904,-480.0,0.00020155,2]
[387596275,1758780635913,-480.0,0.00020155,2]
[387596276,1758780635922,-480.0,0.00020155,2]
[387596277,1758780635933,-480.0,0.00020155,2]
[387596278,1758780635942,-480.0,0.00020155,2]
[387596279,1758780635952,-480.0,0.00020156,2]
[387596280,1758780635965,-480.0,0.00020156,2]
[387596281,1758780635974,-480.0,0.00020156,2]
[387596282,1758780635983,-480.0,0.00020156,2]
[387596283,1758780635993,-480.0,0.00020158,2]
[387596284,1758780636003,-522.88,0.00020158,2]
[387596285,1758780636013,-480.0,0.00020158,2]
[387596286,1758780636023,-480.0,0.00020159,2]
[387596287,1758780636033,-480.0,0.00020159,2]
[387596288,1758780636043,-480.0,0.00020159,2]
[387596289,1758780636052,-480.0,0.00020159,2]
[387596290,1758780636061,-480.0,0.00020159,2]
[387596291,1758780636071,-480.0,0.00020159,2]
[387596292,1758780636080,-480.0,0.00020159,2]
[387596293,1758780636090,-480.0,0.00020159,2]
[387596294,1758780636100,-2427.37,0.00020159,2]
[387596295,1758780636110,-480.0,0.00020159,2]
[387596296,1758780636120,-392.78278294,0.00020159,2]
[387596297,1758780636129,-480.0,0.00020159,2]
[387596298,1758780636138,-1282.95,0.00020159,2]
[387596299,1758780636148,-480.0,0.00020159,2]
[387596300,1758780636157,-480.0,0.0002016,2]
[387596301,1758780636166,-480.0,0.0002016,2]
[387596302,1758780636177,-480.0,0.0002016,2]
[387596303,1758780636187,-500.0,0.00020173,2]
[387596304,1758780636197,-501.2679899,0.00020173,2]
[387596305,1758780636207,-480.0,0.00020173,2]
[387596306,1758780636216,-300.0,0.0002025,2]
[387596307,1758780636225,-218.98695377,0.00020421,2]
[387596308,1758780636235,-1000.0,0.00020421,2]
[387596309,1758780636245,-1000.0,0.00020421,2]
[387596310,1758780636254,-1000.0,0.00020421,2]
[387596311,1758780636263,-1000.0,0.00020421,2]
[387596312,1758780636273,-1000.0,0.00020421,2]
[387596313,1758780636283,-1000.0,0.00020421,2]
[387596314,1758780636292,-1000.0,0.00020421,2]
[387596315,1758780636301,-1000.0,0.00020421,2]
[387596316,1758780636310,-1023.22656174,0.00020421,2]
[387596317,1758780636320,-762.28532134,0.00020421,2]
[387596318,1758780636329,-768.47350391,0.00020421,2]
[387596319,1758780636338,-480.0,0.00020426,2]
[387596320,1758780636348,-480.0,0.00020426,2]
[387596321,1758780636358,-488.52,0.00020428,2]
[387596322,1758780636368,-480.0,0.00020428,2]
[387596323,1758780636378,-480.0,0.00020428,2]
[387596324,1758780636388,-480.0,0.00020428,2]
[387596325,1758780636398,-480.0,0.00020428,2]
[387596326,1758780636407,-480.0,0.00020428,2]
[387596327,1758780636417,-480.0,0.00020428,2]
[387596328,1758780636428,-504.62,0.00020428,2]
[387596329,1758780636439,-480.0,0.00020428,2]
[387596330,1758780636448,-480.0,0.00020429,2]
[387596331,1758780636458,-480.0,0.00020429,2]
[387596332,1758780636469,-480.0,0.00020429,2]
[387596333,1758780636480,-480.0,0.00020429,2]
[387596334,1758780636490,-480.0,0.00020429,2]
[387596335,1758780636500,-480.0,0.00020429,2]
[387596336,1758780636509,-480.0,0.00020429,2]
[387596337,1758780636519,-480.0,0.00020429,2]
[387596338,1758780636528,-480.0,0.00020429,2]
[387596339,1758780636538,-480.0,0.0002043,2]
[387596340,1758780636547,-480.0,0.0002043,2]
[387596341,1758780636557,-480.0,0.0002043,2]
[387596342,1758780636567,-480.0,0.0002043,2]
[387596343,1758780636576,-480.0,0.00020432,2]
[387596344,1758780636585,-522.88,0.00020432,2]
[387596345,1758780636595,-480.0,0.00020432,2]
[387596346,1758780636604,-480.0,0.00020433,2]
[387596347,1758780636614,-248.44465007,0.00020433,2]
[387596348,1758780636624,-480.0,0.00020433,2]
[387596349,1758780636634,-480.0,0.00020433,2]
[387596350,1758780636643,-480.0,0.00020433,2]
[387596351,1758780636653,-480.0,0.00020433,2]
[387596352,1758780636662,-480.0,0.00020433,2]
[387596353,1758780636671,-480.0,0.00020433,2]
[387596354,1758780636681,-2427.37,0.00020433,2]
[387596355,1758780636690,-386.38850538,0.00020433,2]
[387596356,1758780636701,-480.0,0.00020433,2]
[387596357,1758780636710,-1282.95,0.00020433,2]
[387596358,1758780636719,-80.08575086,0.00020433,2]
[387596379,1758780638450,-530.20848261,0.00019334,2]
[387596380,1758780638460,-399.91424914,0.00020433,2]
[387596381,1758780638470,-480.0,0.00020434,2]
[387596382,1758780638480,-480.0,0.00020434,2]
[387596383,1758780638489,-480.0,0.00020447,2]
[387596384,1758780638499,-1500.0,0.00020468,2]
[387596385,1758780638509,-231.55768368,0.00020468,2]
[387596386,1758780638519,-257.3260571,0.00020468,2]
[387596387,1758780638531,-1242.6739429,0.00020468,2]
[387596388,1758780638541,-571.63619755,0.00020468,2]
[387596389,1758780638550,-394.58552777,0.00020468,2]
[387596390,1758780638561,-1500.0,0.00020468,2]
[387596392,1758780638571,-567.05158692,0.00020468,2]